fUSD/lending_fUSD_20250111
["ID","MTS","AMOUNT","RATE_DAILY","PERIOD"]
[348502781,1736592639181,-500.0,9.997e-05,2]
[348502782,1736592639190,-302.95780093,9.997e-05,2]
[348502783,1736592639200,-500.0,9.997e-05,2]
[348502784,1736592639209,-500.0,9.997e-05,2]
[348502785,1736592639218,-500.0,9.997e-05,2]
[348502786,1736592639229,-500.0,9.997e-05,2]
[348502787,1736592639239,-500.0,9.997e-05,2]
[348502788,1736592639248,-500.0,9.997e-05,2]
[348502789,1736592639259,-500.0,9.997e-05,2]
[348502790,1736592639270,-500.0,9.997e-05,2]
[348502791,1736592639279,-500.0,9.997e-05,2]
[348502792,1736592639289,-500.0,9.997e-05,2]
[348502793,1736592639298,-500.0,9.997e-05,2]
[348502794,1736592639307,-500.0,9.997e-05,2]
[348502795,1736592639317,-500.0,9.997e-05,2]
[348502796,1736592639327,-2167.18,9.997e-05,2]
[348502797,1736592639336,-160.16,9.997e-05,2]
[348502798,1736592639345,-500.0,9.997e-05,2]
[348502799,1736592639355,-500.0,9.997e-05,2]
[348502800,1736592639365,-500.0,9.997e-05,2]
[348502801,1736592639375,-562.25,9.997e-05,2]
[348502802,1736592639384,-500.0,9.997e-05,2]
[348502803,1736592639394,-1245.97,9.997e-05,2]
[348502804,1736592639403,-500.0,9.997e-05,2]
[348502805,1736592639412,-500.0,9.997e-05,2]
[348502806,1736592639423,-500.0,9.997e-05,2]
[348502807,1736592639432,-500.0,9.997e-05,2]
[348502808,1736592639442,-500.0,9.997e-05,2]
[348502809,1736592639451,-500.0,9.997e-05,2]
[348502810,1736592639461,-500.0,9.997e-05,2]
[348502811,1736592639470,-500.0,9.997e-05,2]
[348502812,1736592639480,-500.0,9.997e-05,2]
[348502813,1736592639489,-331.79585934,9.997e-05,2]
[348502814,1736592639499,-1266.31,9.997e-05,2]
[348502815,1736592639508,-500.0,9.997e-05,2]
[348502816,1736592639518,-500.0,9.997e-05,2]
[348502817,1736592639528,-500.0,9.997e-05,2]
[348502818,1736592639537,-504.92935538,9.997e-05,2]
[348502819,1736592639547,-500.0,9.997e-05,2]
[348502820,1736592639557,-2477.95,9.997e-05,2]
[348502821,1736592639567,-500.0,9.997e-05,2]
[348502822,1736592639576,-500.0,9.997e-05,2]
[348502824,1736592639586,-500.0,9.997e-05,2]
[348502825,1736592639595,-500.0,9.997e-05,2]
[348502827,1736592639605,-500.0,9.997e-05,2]
[348502828,1736592639614,-500.0,9.997e-05,2]
[348502829,1736592639623,-500.0,9.997e-05,2]
[348502831,1736592639633,-500.0,9.997e-05,2]
[348502833,1736592639642,-500.0,9.997e-05,2]
[348502834,1736592639651,-500.0,9.997e-05,2]
[348502835,1736592639661,-500.0,9.997e-05,2]
[348502836,1736592639670,-500.0,9.997e-05,2]
[348502837,1736592639682,-500.0,9.997e-05,2]
[348502838,1736592639692,-500.0,9.997e-05,2]
[348502839,1736592639702,-500.0,9.997e-05,2]
[348502840,1736592639711,-500.0,9.997e-05,2]
[348502841,1736592639721,-500.0,9.997e-05,2]
[348502842,1736592639730,-500.0,9.997e-05,2]
[348502843,1736592639740,-500.0,9.997e-05,2]
[348502844,1736592639749,-501.08,9.997e-05,2]
[348502845,1736592639759,-500.0,9.997e-05,2]
[348502846,1736592639769,-500.0,9.997e-05,2]
[348502847,1736592639779,-984.05,9.997e-05,2]
[348502848,1736592639788,-500.0,9.997e-05,2]
[348502849,1736592639798,-500.0,9.997e-05,2]
[348502850,1736592639808,-500.0,9.997e-05,2]
[348502851,1736592639817,-500.0,9.997e-05,2]
[348502852,1736592639826,-500.0,9.997e-05,2]
[348502853,1736592639835,-514.31,9.997e-05,2]
[348502854,1736592639845,-500.0,9.997e-05,2]
[348502855,1736592639854,-500.0,9.997e-05,2]
[348502856,1736592639863,-500.0,9.997e-05,2]
[348502857,1736592639874,-500.0,9.997e-05,2]
[348502858,1736592639883,-237.2334536,9.997e-05,2]
[348502859,1736592639893,-500.0,9.997e-05,2]
[348502860,1736592639902,-500.0,9.997e-05,2]
[348502861,1736592639911,-500.0,9.997e-05,2]
[348502862,1736592639921,-1078.04,9.997e-05,2]
[348502863,1736592639933,-500.0,9.997e-05,2]
[348502864,1736592639943,-500.0,9.997e-05,2]
[348502865,1736592639952,-500.0,9.997e-05,2]
[348502866,1736592639962,-500.0,9.997e-05,2]
[348502867,1736592639972,-500.0,9.997e-05,2]
[348502868,1736592639981,-500.0,9.997e-05,2]
[348502869,1736592639991,-500.0,9.997e-05,2]
[348502870,1736592640000,-1084.77,9.997e-05,2]
[348502871,1736592640010,-500.0,9.997e-05,2]
[348502872,1736592640020,-636.1,9.997e-05,2]
[348502873,1736592640030,-500.0,9.997e-05,2]
[348502874,1736592640039,-500.0,9.997e-05,2]
[348502875,1736592640049,-1316.93,9.997e-05,2]
[348502876,1736592640058,-500.0,9.997e-05,2]
[348502877,1736592640067,-500.0,9.997e-05,2]
[348502878,1736592640077,-2184.03,9.997e-05,2]
[348502879,1736592640086,-500.0,9.997e-05,2]
[348502880,1736592640095,-1177.72425873,9.997e-05,2]
[348502894,1736592640420,-424.77691151,9.997e-05,2]
[348502895,1736592640432,-1787.54276434,9.997e-05,2]
[348502896,1736592640443,-517.24606542,9.997e-05,2]
[348502897,1736592640453,-500.0,9.997e-05,2]
[348502898,1736592640463,-87.88357393,9.997e-05,2]
[348502899,1736592640498,-516.51017252,9.997e-05,2]
[348502900,1736592640508,-500.0,9.997e-05,2]
[348502901,1736592640518,-500.0,9.997e-05,2]
[348502902,1736592640528,-500.0,9.997e-05,2]
[348502903,1736592640537,-500.0,9.997e-05,2]
[348502904,1736592640547,-500.0,9.997e-05,2]
[348502905,1736592640557,-500.0,9.997e-05,2]
[348502906,1736592640566,-225.00719621,9.997e-05,2]
[348502907,1736592640578,-274.99280379,9.997e-05,2]
[348502908,1736592640587,-500.0,9.997e-05,2]
[348502909,1736592640596,-500.0,9.997e-05,2]
[348502910,1736592640606,-500.0,9.997e-05,2]
[348502911,1736592640615,-500.0,9.997e-05,2]
[348502912,1736592640625,-500.0,9.997e-05,2]
[348502913,1736592640634,-500.0,9.997e-05,2]
[348502914,1736592640643,-500.0,9.997e-05,2]
[348502915,1736592640652,-718.05,9.997e-05,2]
[348502916,1736592640661,-500.0,9.997e-05,2]
[348502917,1736592640671,-940.88,9.997e-05,2]
[348502918,1736592640682,-500.0,9.997e-05,2]
[348502919,1736592640691,-500.0,9.997e-05,2]
[348502920,1736592640700,-1803.81,9.997e-05,2]
[348502921,1736592640710,-500.0,9.997e-05,2]
[348502922,1736592640719,-210.66165729,9.997e-05,2]
[348502923,1736592640737,-289.33834271,9.997e-05,2]
[348502924,1736592640746,-85.24365729,9.997e-05,2]
[348502925,1736592640758,-1311.75634271,9.997e-05,2]
[348502926,1736592640768,-500.0,9.997e-05,2]
[348502927,1736592640777,-500.0,9.997e-05,2]
[348502928,1736592640787,-500.0,9.997e-05,2]
[348502929,1736592640797,-2530.81,9.997e-05,2]
[348502930,1736592640807,-500.0,9.997e-05,2]
[348502931,1736592640816,-1550.73,9.997e-05,2]
[348502932,1736592640825,-500.0,9.997e-05,2]
[348502933,1736592640834,-315.80244975,9.997e-05,2]
[348502934,1736592640846,-184.19755025,9.997e-05,2]
[348502935,1736592640855,-65.8357998,9.997e-05,2]
[348502936,1736592641046,-607.4742002,9.997e-05,2]
[348502937,1736592641056,-500.0,9.997e-05,2]
[348502938,1736592641066,-500.0,9.997e-05,2]
[348502939,1736592641075,-500.0,9.997e-05,2]
[348502940,1736592641085,-500.0,9.997e-05,2]
[348502941,1736592641094,-500.0,9.997e-05,2]
[348502942,1736592641104,-500.0,9.997e-05,2]
[348502943,1736592641113,-500.0,9.997e-05,2]
[348502944,1736592641122,-500.0,9.997e-05,2]
[348502945,1736592641132,-500.0,9.997e-05,2]
[348502946,1736592641141,-500.0,9.997e-05,2]
[348502947,1736592641151,-500.0,9.997e-05,2]
[348502948,1736592641160,-500.0,9.997e-05,2]
[348502949,1736592641170,-500.0,9.997e-05,2]
[348502950,1736592641180,-500.0,9.997e-05,2]
[348502951,1736592641191,-500.0,9.997e-05,2]
[348502952,1736592641200,-500.0,9.997e-05,2]
[348502953,1736592641210,-500.0,9.997e-05,2]
[348502954,1736592641219,-500.0,9.997e-05,2]
[348502955,1736592641228,-500.0,9.997e-05,2]
[348502956,1736592641237,-1088.59,9.997e-05,2]
[348502957,1736592641247,-500.0,9.997e-05,2]
[348502958,1736592641256,-500.0,9.997e-05,2]
[348502959,1736592641265,-500.0,9.997e-05,2]
[348502960,1736592641275,-781.61,9.997e-05,2]
[348502961,1736592641284,-1219.73,9.997e-05,2]
[348502962,1736592641293,-500.0,9.997e-05,2]
[348502963,1736592641303,-1227.28,9.997e-05,2]
[348502964,1736592641312,-500.0,9.997e-05,2]
[348502965,1736592641321,-500.0,9.997e-05,2]
[348502966,1736592641330,-500.0,9.997e-05,2]
[348502967,1736592641339,-500.0,9.997e-05,2]
[348502968,1736592641348,-500.0,9.997e-05,2]
[348502969,1736592641357,-500.0,9.997e-05,2]
[348502970,1736592641367,-500.0,9.997e-05,2]
[348502971,1736592641376,-500.0,9.997e-05,2]
[348502972,1736592641386,-500.0,9.997e-05,2]
[348502973,1736592641395,-500.0,9.997e-05,2]
[348502974,1736592641404,-500.0,9.997e-05,2]
[348502975,1736592641413,-346.38784156,9.997e-05,2]
[348502976,1736592641422,-500.0,9.997e-05,2]
[348502977,1736592641434,-894.44,9.997e-05,2]
[348502978,1736592641445,-500.0,9.997e-05,2]
[348502979,1736592641454,-500.0,9.997e-05,2]
[348502980,1736592641463,-482.19,9.997e-05,2]
[348502981,1736592641473,-595.98,9.997e-05,2]
[348502982,1736592641482,-500.0,9.997e-05,2]
[348502983,1736592641491,-500.0,9.997e-05,2]
[348502984,1736592641500,-500.0,9.997e-05,2]
[348502985,1736592641509,-500.0,9.997e-05,2]
[348502986,1736592641519,-500.0,9.997e-05,2]
[348502987,1736592641527,-500.0,9.997e-05,2]
[348502988,1736592641536,-500.0,9.997e-05,2]
[348502989,1736592641545,-500.0,9.997e-05,2]
[348502990,1736592641555,-500.0,9.997e-05,2]
[348502991,1736592641564,-545.0,9.997e-05,2]
[348502992,1736592641573,-500.0,9.997e-05,2]
[348502993,1736592641582,-505.27019192,9.997e-05,2]
[348502994,1736592641591,-500.0,9.997e-05,2]
[348502995,1736592641600,-500.0,9.997e-05,2]
[348502996,1736592641609,-500.0,9.998e-05,2]
[348502997,1736592641619,-500.0,9.998e-05,2]
[348502998,1736592641628,-500.0,9.998e-05,2]
[348502999,1736592641637,-500.0,9.998e-05,2]
[348503000,1736592641646,-500.0,9.998e-05,2]
[348503001,1736592641655,-500.0,9.998e-05,2]
[348503002,1736592641664,-500.0,9.998e-05,2]
[348503003,1736592641673,-500.0,9.998e-05,2]
[348503004,1736592641684,-500.0,9.998e-05,2]
[348503005,1736592641694,-500.0,9.998e-05,2]
[348503006,1736592641703,-500.0,9.998e-05,2]
[348503007,1736592641712,-500.0,9.998e-05,2]
[348503008,1736592641721,-500.0,9.998e-05,2]
[348503009,1736592641730,-500.0,9.998e-05,2]
[348503010,1736592641739,-500.0,9.998e-05,2]
[348503011,1736592641748,-500.0,9.998e-05,2]
[348503012,1736592641757,-500.0,9.998e-05,2]
[348503013,1736592641766,-500.0,9.998e-05,2]
[348503014,1736592641775,-500.0,9.998e-05,2]
[348503015,1736592641786,-500.0,9.998e-05,2]
[348503016,1736592641795,-500.0,9.998e-05,2]
[348503017,1736592641804,-539.17,9.998e-05,2]
[348503018,1736592641813,-500.0,9.998e-05,2]
[348503019,1736592641823,-500.0,9.998e-05,2]
[348503020,1736592641833,-441.36,9.998e-05,2]
[348503021,1736592641841,-261.84,9.998e-05,2]
[348503022,1736592641851,-500.0,9.998e-05,2]
[348503023,1736592641861,-500.0,9.998e-05,2]
[348503024,1736592641872,-500.0,9.998e-05,2]
[348503025,1736592641881,-572.75,9.998e-05,2]
[348503026,1736592641890,-500.0,9.998e-05,2]
[348503027,1736592641898,-500.0,9.998e-05,2]
[348503028,1736592641907,-500.0,9.998e-05,2]
[348503029,1736592641917,-500.0,9.998e-05,2]
[348503030,1736592641926,-500.0,9.998e-05,2]
[348503031,1736592641936,-271.09,9.998e-05,2]
[348503032,1736592641946,-503.77,9.998e-05,2]
[348503033,1736592641956,-500.0,9.998e-05,2]
[348503034,1736592641965,-500.0,9.998e-05,2]
[348503035,1736592641974,-500.0,9.998e-05,2]
[348503036,1736592641984,-500.0,9.998e-05,2]
[348503037,1736592641992,-500.0,9.998e-05,2]
[348503038,1736592642001,-500.0,9.998e-05,2]
[348503039,1736592642010,-500.0,9.998e-05,2]
[348503040,1736592642020,-594.34,9.998e-05,2]
[348503041,1736592642029,-500.0,9.998e-05,2]
[348503042,1736592642038,-582.94,9.998e-05,2]
[348503043,1736592642048,-500.0,9.998e-05,2]
[348503044,1736592642057,-500.0,9.998e-05,2]
[348503045,1736592642066,-549.12,9.998e-05,2]
[348503046,1736592642075,-500.0,9.998e-05,2]
[348503047,1736592642084,-500.0,9.998e-05,2]
[348503048,1736592642093,-500.0,9.998e-05,2]
[348503049,1736592642102,-500.0,9.998e-05,2]
[348503050,1736592642111,-500.0,9.998e-05,2]
[348503051,1736592642122,-500.0,9.998e-05,2]
[348503052,1736592642131,-500.0,9.998e-05,2]
[348503053,1736592642140,-500.0,9.998e-05,2]
[348503054,1736592642150,-500.0,9.998e-05,2]
[348503055,1736592642159,-500.0,9.998e-05,2]
[348503056,1736592642168,-500.0,9.998e-05,2]
[348503057,1736592642178,-500.0,9.998e-05,2]
[348503058,1736592642189,-500.0,9.998e-05,2]
[348503059,1736592642199,-500.0,9.998e-05,2]
[348503060,1736592642208,-500.0,9.998e-05,2]
[348503061,1736592642217,-500.0,9.998e-05,2]
[348503062,1736592642226,-500.0,9.998e-05,2]
[348503063,1736592642235,-502.18,9.998e-05,2]
[348503064,1736592642244,-500.0,9.998e-05,2]
[348503065,1736592642253,-500.0,9.998e-05,2]
[348503066,1736592642262,-500.0,9.998e-05,2]
[348503067,1736592642271,-543.46,9.998e-05,2]
[348503068,1736592642281,-500.0,9.998e-05,2]
[348503069,1736592642290,-500.0,9.998e-05,2]
[348503070,1736592642299,-557.12,9.998e-05,2]
[348503071,1736592642307,-500.0,9.998e-05,2]
[348503072,1736592642316,-500.0,9.998e-05,2]
[348503073,1736592642325,-559.77,9.998e-05,2]
[348503074,1736592642336,-500.0,9.998e-05,2]
[348503075,1736592642345,-500.0,9.998e-05,2]
[348503076,1736592642355,-500.0,9.998e-05,2]
[348503077,1736592642364,-500.0,9.998e-05,2]
[348503078,1736592642580,-500.0,9.998e-05,2]
[348503079,1736592642591,-500.0,9.998e-05,2]
[348503080,1736592642600,-500.0,9.998e-05,2]
[348503081,1736592642609,-539.16,9.998e-05,2]
[348503082,1736592642618,-500.0,9.998e-05,2]
[348503083,1736592642627,-500.0,9.998e-05,2]
[348503084,1736592642637,-500.0,9.998e-05,2]
[348503085,1736592642646,-500.0,9.998e-05,2]
[348503086,1736592642655,-500.0,9.998e-05,2]
[348503087,1736592642664,-500.0,9.998e-05,2]
[348503088,1736592642674,-831.91,9.998e-05,2]
[348503089,1736592642684,-500.0,9.998e-05,2]
[348503090,1736592642693,-500.0,9.998e-05,2]
[348503091,1736592642702,-500.0,9.998e-05,2]
[348503092,1736592642711,-500.0,9.998e-05,2]
[348503093,1736592642720,-500.0,9.998e-05,2]
[348503094,1736592642729,-500.0,9.998e-05,2]
[348503095,1736592642738,-500.0,9.998e-05,2]
[348503096,1736592642747,-500.0,9.998e-05,2]
[348503098,1736592642757,-500.0,9.998e-05,2]
[348503100,1736592642766,-2592.93,9.998e-05,2]
[348503102,1736592642775,-500.0,9.998e-05,2]
[348503104,1736592642785,-500.0,9.998e-05,2]
[348503105,1736592642795,-500.0,9.998e-05,2]
[348503107,1736592642804,-500.0,9.998e-05,2]
[348503109,1736592642813,-500.0,9.998e-05,2]
[348503110,1736592642823,-500.0,9.998e-05,2]
[348503111,1736592642832,-500.0,9.998e-05,2]
[348503112,1736592642843,-500.0,9.998e-05,2]
[348503113,1736592642853,-500.0,9.998e-05,2]
[348503114,1736592642863,-1920.03,9.998e-05,2]
[348503115,1736592642874,-500.0,9.998e-05,2]
[348503116,1736592642883,-500.0,9.998e-05,2]
[348503117,1736592642893,-500.0,9.998e-05,2]
[348503118,1736592642902,-500.0,9.998e-05,2]
[348503119,1736592642914,-500.0,9.998e-05,2]
[348503120,1736592642925,-500.0,9.998e-05,2]
[348503121,1736592642938,-500.0,9.998e-05,2]
[348503122,1736592642948,-500.0,9.998e-05,2]
[348503123,1736592642957,-500.0,9.998e-05,2]
[348503124,1736592642966,-500.0,9.998e-05,2]
[348503125,1736592642976,-500.0,9.998e-05,2]
[348503126,1736592642984,-500.0,9.998e-05,2]
[348503127,1736592642993,-500.0,9.998e-05,2]
[348503128,1736592643002,-500.0,9.998e-05,2]
[348503129,1736592643012,-500.0,9.998e-05,2]
[348503130,1736592643021,-500.0,9.998e-05,2]
[348503131,1736592643030,-500.0,9.998e-05,2]
[348503132,1736592643040,-500.0,9.998e-05,2]
[348503133,1736592643049,-500.0,9.998e-05,2]
[348503134,1736592643059,-500.0,9.998e-05,2]
[348503135,1736592643067,-500.0,9.998e-05,2]
[348503136,1736592643077,-500.0,9.998e-05,2]
[348503137,1736592643087,-622.61,9.999e-05,2]
[348503138,1736592643098,-500.0,9.999e-05,2]
[348503139,1736592643107,-771.11,9.999e-05,2]
[348503140,1736592643117,-1096.93,9.999e-05,2]
[348503141,1736592643126,-500.0,9.999e-05,2]
[348503142,1736592643135,-873.97,9.999e-05,2]
[348503143,1736592643144,-2112.77,9.999e-05,2]
[348503144,1736592643154,-873.28,9.999e-05,2]
[348503145,1736592643164,-815.55,9.999e-05,2]
[348503146,1736592643173,-701.13,9.999e-05,2]
[348503147,1736592643182,-746.66,9.999e-05,2]
[348503148,1736592643192,-500.0,9.999e-05,2]
[348503149,1736592643201,-1009.27,9.999e-05,2]
[348503150,1736592643211,-1322.76,9.999e-05,2]
[348503151,1736592643220,-500.0,9.999e-05,2]
[348503152,1736592643229,-704.08,9.999e-05,2]
[348503153,1736592643238,-743.19,9.999e-05,2]
[348503154,1736592643248,-500.0,9.999e-05,2]
[348503155,1736592643258,-535.04,9.999e-05,2]
[348503156,1736592643267,-500.0,9.999e-05,2]
[348503157,1736592643276,-500.0,9.999e-05,2]
[348503158,1736592643287,-513.12,9.999e-05,2]
[348503159,1736592643296,-946.0,0.0001,2]
[348503160,1736592643305,-70685.20345701,0.0001,2]
[348503161,1736592643322,-2295.0,0.0001,2]
[348503162,1736592643335,-4842.79707678,0.0001,2]
[348503164,1736592643346,-2362.0180762,0.0001,2]
[348503165,1736592643357,-1096.5,0.0001,2]
[348503166,1736592643368,-242513.25722435,0.0001,2]
[348503167,1736592643379,-4367.6628453,0.0001,2]
[348503168,1736592643389,-3073.13814854,0.0001,2]
[348503169,1736592643400,-753.69950238,0.0001,2]
[348503170,1736592643696,-344.93528322,9.996e-05,2]
[348503171,1736592643708,-155.06471678,9.996e-05,2]
[348503172,1736592643717,-500.0,9.997e-05,2]
[348503173,1736592643727,-83.11828848,9.997e-05,2]
[348503174,1736592643738,-416.88171152,9.997e-05,2]
[348503175,1736592643747,-1138.5280906,0.0001,2]
[348503176,1736592643766,-417093.92130592,0.0001,2]
[348503177,1736592643776,-727091.99837174,0.0001,2]
[348503178,1736592643790,-22429.0,0.0001,2]
[348503190,1736592645909,-500.0,9.996e-05,2]
[348503191,1736592645922,-464.96,9.996e-05,2]
[348503192,1736592645937,-35.04,9.996e-05,2]
[348503193,1736592645954,-500.0,9.996e-05,2]
[348503194,1736592645967,-500.0,9.997e-05,2]
[348503195,1736592645978,-500.0,9.998e-05,2]
[348503196,1736592645990,-55840.3,0.0001,2]
[348503200,1736592646141,-91521.36363597,0.0001,2]
[348503201,1736592646157,-59412.00461424,0.0001,2]
[348503202,1736592646172,-16254.27331525,0.0001,2]
[348503203,1736592646188,-14203.26012712,0.0001,2]
[348503204,1736592646203,-532.76709428,0.0001,2]
[348503207,1736592646228,-3810.64634568,0.0001,2]
[348503208,1736592646243,-389.93801327,0.0001,2]
[348503209,1736592671997,1858.92,8.846e-05,2]
[348503210,1736592930635,200.0,9.03e-05,2]
[348503212,1736593000828,1000.0,9.021e-05,2]
[348503213,1736593133057,788.3,8.219e-05,2]
[348503214,1736593380982,267.83,9.004e-05,2]
[348503216,1736593422767,250.0,8.983e-05,2]
[348503217,1736593450268,296.6,9.004e-05,2]
[348503218,1736593692809,1158.96,8.993e-05,2]
[348503219,1736593755172,558.17,8.993e-05,2]
[348503223,1736593832052,-250.0,9.133e-05,2]
[348503224,1736593832063,-223.25,9.4e-05,3]
[348503225,1736593832248,-576.75,9.4e-05,3]
[348503226,1736593832260,-208.017,9.5e-05,2]
[348503227,1736593832270,-1600.0,9.5e-05,3]
[348503228,1736593832280,-23711.859906,9.552e-05,2]
[348503229,1736593832289,-549.61957397,9.552e-05,2]
[348503230,1736593832299,-2400.0,9.6e-05,3]
[348503231,1736593832308,-500.0,9.664e-05,2]
[348503232,1736593832319,-300.0,9.699e-05,2]
[348503233,1736593832332,-3200.0,9.7e-05,3]
[348503234,1736593832341,-3969.17874327,9.8e-05,3]
[348503235,1736593832367,-130.82125673,9.8e-05,3]
[348503236,1736593832377,-173.01,9.813e-05,2]
[348503237,1736593832387,-150.0,9.817e-05,2]
[348503238,1736593832397,-322.3087,9.897e-05,2]
[348503239,1736593832407,-329.36834404,9.898e-05,2]
[348503240,1736593832473,-785.65975596,9.898e-05,2]
[348503241,1736593832483,-800.0,9.9e-05,3]
[348503242,1736593832495,-151.847696,9.973e-05,2]
[348503243,1736593832505,-160.649498,9.973e-05,2]
[348503244,1736593832514,-151.847696,9.973e-05,2]
[348503245,1736593832524,-159.83968,9.973e-05,2]
[348503246,1736593832534,-150.848698,9.973e-05,2]
[348503247,1736593832543,-155.843688,9.973e-05,2]
[348503248,1736593832554,-500.0,9.973e-05,2]
[348503249,1736593832564,-535.533,9.993e-05,2]
[348503250,1736593832573,-500.0,9.996e-05,2]
[348503251,1736593832583,-500.0,9.996e-05,2]
[348503252,1736593832592,-500.0,9.996e-05,2]
[348503253,1736593832602,-500.0,9.996e-05,2]
[348503254,1736593832611,-500.0,9.996e-05,2]
[348503255,1736593832621,-500.0,9.996e-05,2]
[348503256,1736593832630,-500.0,9.996e-05,2]
[348503257,1736593832639,-215.76655307,9.996e-05,2]
[348503258,1736593832663,-284.23344693,9.996e-05,2]
[348503259,1736593832673,-500.0,9.996e-05,2]
[348503260,1736593832682,-500.0,9.996e-05,2]
[348503261,1736593832691,-500.0,9.996e-05,2]
[348503263,1736593832701,-500.0,9.996e-05,2]
[348503265,1736593832710,-500.0,9.996e-05,2]
[348503267,1736593832720,-500.0,9.996e-05,2]
[348503268,1736593832729,-500.0,9.996e-05,2]
[348503270,1736593832740,-500.0,9.996e-05,2]
[348503272,1736593832750,-500.0,9.996e-05,2]
[348503275,1736593832759,-500.0,9.996e-05,2]
[348503276,1736593832768,-500.0,9.996e-05,2]
[348503278,1736593832778,-500.0,9.996e-05,2]
[348503280,1736593832787,-500.0,9.996e-05,2]
[348503282,1736593832796,-500.0,9.996e-05,2]
[348503284,1736593832806,-500.0,9.996e-05,2]
[348503286,1736593832815,-500.0,9.996e-05,2]
[348503289,1736593832824,-500.0,9.996e-05,2]
[348503292,1736593832834,-500.0,9.996e-05,2]
[348503295,1736593832843,-500.0,9.996e-05,2]
[348503297,1736593832853,-500.0,9.996e-05,2]
[348503299,1736593832862,-500.0,9.996e-05,2]
[348503301,1736593832872,-170.12,9.996e-05,2]
[348503303,1736593832882,-500.0,9.996e-05,2]
[348503306,1736593832892,-500.0,9.996e-05,2]
[348503308,1736593832901,-232.72,9.996e-05,2]
[348503309,1736593832910,-500.0,9.996e-05,2]
[348503312,1736593832919,-500.0,9.996e-05,2]
[348503313,1736593832929,-500.0,9.996e-05,2]
[348503316,1736593832938,-500.0,9.996e-05,2]
[348503317,1736593832947,-500.0,9.996e-05,2]
[348503319,1736593832956,-500.0,9.996e-05,2]
[348503321,1736593832965,-500.0,9.996e-05,2]
[348503323,1736593832975,-500.0,9.996e-05,2]
[348503325,1736593832984,-500.0,9.996e-05,2]
[348503327,1736593832994,-500.0,9.996e-05,2]
[348503329,1736593833003,-500.0,9.996e-05,2]
[348503332,1736593833012,-500.0,9.996e-05,2]
[348503334,1736593833022,-500.0,9.996e-05,2]
[348503336,1736593833031,-1033.13,9.996e-05,2]
[348503338,1736593833041,-500.0,9.996e-05,2]
[348503339,1736593833050,-500.0,9.996e-05,2]
[348503341,1736593833059,-500.0,9.996e-05,2]
[348503342,1736593833069,-474.83773589,9.996e-05,2]
[348503344,1736593833078,-500.0,9.996e-05,2]
[348503345,1736593833087,-550.28,9.996e-05,2]
[348503347,1736593833097,-500.0,9.996e-05,2]
[348503348,1736593833106,-2093.03,9.996e-05,2]
[348503349,1736593833115,-500.0,9.996e-05,2]
[348503350,1736593833124,-335.52,9.996e-05,2]
[348503351,1736593833134,-500.0,9.997e-05,2]
[348503352,1736593833143,-500.0,9.997e-05,2]
[348503353,1736593833152,-802.65,9.997e-05,2]
[348503354,1736593833161,-500.0,9.997e-05,2]
[348503355,1736593833171,-500.0,9.997e-05,2]
[348503356,1736593833180,-500.0,9.997e-05,2]
[348503357,1736593833190,-500.0,9.997e-05,2]
[348503358,1736593833200,-500.0,9.997e-05,2]
[348503359,1736593833210,-2024.73,9.997e-05,2]
[348503360,1736593833219,-500.0,9.997e-05,2]
[348503361,1736593833228,-502.57294995,9.997e-05,7]
[348503362,1736593833237,-535.70954898,9.997e-05,2]
[348503363,1736593833247,-500.0,9.997e-05,2]
[348503364,1736593833257,-500.0,9.997e-05,2]
[348503365,1736593833267,-500.0,9.997e-05,2]
[348503366,1736593833277,-836.9,9.997e-05,2]
[348503367,1736593833287,-500.0,9.997e-05,2]
[348503368,1736593833298,-500.0,9.997e-05,2]